Cogmind - Beta 13 @@@ ROGUE MODE // 2024.05.03 @ 10:31:08 Player: Bzilon Result: Destroyed by H-55 Commando with Gauss Rifle Performance ------------- Evolutions (3) 1500 Regions Visited (8) 1600 Robots Destroyed (38) 190 Value Destroyed (1548) 1548 Prototype IDs (0) 0 Alien Tech Used (0) 0 Bonus (1086) 1086 TOTAL SCORE: 5924 Bonus ------- High Alert Combat Kills 61 Entered Garrisons 200 Used RIF Installer 500 Entered DSFs 500 Friendly Fire -175 Cogmind --------- Core Integrity 0/700 Matter 12/300 Energy 290/290 System Corruption 0% Temperature Cool (0) Movement Core (250) Ox4 Location -7/DSF Parts ------- > --- POWER (2) -------- Reinforced Deuterium Engine > --- PROPULSION (4) --- (None) > --- UTILITY (3) ------ (None) > --- WEAPON (4) ------- (None) > --- INVENTORY (5) ---- Weight Redist. System Improved Particle Charger Improved Particle Charger Improved Power Shielding Relay Coupler [NC] (31) Peak State ------------ > --- POWER ------------ (None) > --- PROPULSION ------- Compact Wheel Airjet Airjet Airjet > --- UTILITY ---------- Heat Sink Small Storage Unit Advanced ECM Suite > --- WEAPON ----------- Particle Gun Particle Gun > --- INVENTORY -------- Weight Redist. System Improved Power Shielding Relay Coupler [NC] Relay Coupler [Grunt] Assault Rifle Assault Rifle [Rating: 21] Favorites ----------- Power Ion Engine Engine Ion Engine Propulsion Aluminum Leg Treads Armored Treads Leg Aluminum Leg Wheel Compact Wheel Hover Unit Airjet Utility Small Storage Unit Device Seismic Detector Storage Small Storage Unit Processor Signal Interpreter Weapon Light Cannon Energy Gun Particle Gun Ballistic Gun Assault Rifle Ballistic Cannon Light Cannon Launcher Grenade Launcher Build | -11 -10 -10 -9 -9 -9 -9 -7 -7 ------- Run | Yrd Mat Min Mat Sto Gar Rec Fac DSF Slots Evolved 6 | . . . 2 . . . 4 . Power 1 | . . . . . . . 1 . Propulsion 2 | . . . 2 . . . . . Utility 1 | . . . . . . . 1 . Weapon 2 | . . . . . . . 2 . Parts Attached 40 | 7 1 6 3 5 5 . . 13 Power 3 | 1 . . . 1 . . . 1 Engine 3 | 1 . . . 1 . . . 1 Core . | . . . . . . . . . Reactor . | . . . . . . . . . Propulsion 19 | 2 1 4 2 2 3 . . 5 Treads 1 | . . . . . . . . 1 Leg 6 | . . . 1 2 3 . . . Wheel 9 | 2 1 4 1 . . . . 1 Hover 3 | . . . . . . . . 3 Flight . | . . . . . . . . . Utility 5 | 2 . . . . 1 . . 2 Device 3 | 1 . . . . . . . 2 Storage 1 | 1 . . . . . . . . Processor 1 | . . . . . 1 . . . Hackware . | . . . . . . . . . Protection . | . . . . . . . . . Artifact . | . . . . . . . . . Weapon 13 | 2 . 2 1 2 1 . . 5 Energy Gun 2 | . . . . . . . . 2 Energy Cannon . | . . . . . . . . . Ballistic Gun 5 | 2 . . 1 1 . . . 1 Ballistic Cannon 2 | . . 1 . . . . . 1 Launcher 4 | . . 1 . 1 1 . . 1 Special Weapon . | . . . . . . . . . Impact Weapon . | . . . . . . . . . Slashing Weapon . | . . . . . . . . . Piercing Weapon . | . . . . . . . . . Special Melee Weapon . | . . . . . . . . . Unidentified Prototypes . | . . . . . . . . . Parts Lost 25 | . . 2 . 3 1 1 . 18 Power 2 | . . . . 1 . 1 . . Propulsion 10 | . . 1 . . 1 . . 8 Utility 4 | . . . . 1 . . . 3 Weapon 9 | . . 1 . 1 . . . 7 Highest Loss Streak 12 | . . 2 . 3 1 1 . 12 To Critical Strikes 1 | . . . . . . . . 1 Average Slot Usage (%) 83 | . 100 98 77 86 96 87 53 38 Engine 9 | . 14 14 11 10 11 10 . 1 Leg 16 | . . . . 15 30 33 23 3 Wheel 12 | . 28 27 22 22 10 . . 1 Device 5 | . 14 14 11 5 . . . 5 Storage 10 | . 14 14 11 11 11 11 7 5 Processor 5 | . . . . . 10 11 7 3 Ballistic Gun 5 | . 28 9 7 7 . . . . Ballistic Cannon 8 | . . 12 11 11 11 11 7 1 Launcher 6 | . . 5 3 3 11 11 7 . Naked Turns 2 | . . . . . . . . 2 Heaviest Build 18 | 15 15 18 18 18 16 16 11 15 Greatest Support 32 | 26 32 32 32 32 30 30 30 30 Greatest Overweight (x) 4 | . . . 1 . . . . 4 Average Overweight (x) . | . . . . . . . . . Largest Inventory Capacity 8 | 8 8 8 8 8 8 8 8 8 Average Capacity 7 | 7 8 8 8 8 8 8 8 7 Most Carried 8 | 5 8 8 8 8 8 8 8 8 Average Carried 6 | 1 5 7 7 7 7 8 8 6 Final Capacity 8 | 8 8 8 8 8 8 8 8 5 Final Carried 8 | 4 7 6 8 7 8 8 8 5 Class Distribution -------------------- 61% | Mutant 38% | Scavenger-Mutant Dominant Class ---------------- Mutant | -10/Materials Mutant | -10/Mines Mutant | -9/Materials Mutant | -9/Storage Scavenger-Mutant | -9/Garrison Scavenger-Mutant | -9/Recycling Mutant | -7/Factory Mutant | -7/DSF Resources | -11 -10 -10 -9 -9 -9 -9 -7 -7 ----------- Run | Yrd Mat Min Mat Sto Gar Rec Fac DSF Matter Collected 774 | 284 85 45 . 224 74 . . 62 Remotely . | . . . . . . . . . Salvage Created 1186 | 148 182 149 . 134 289 . . 284 Parts 62 | 7 9 6 . 5 16 . . 19 Haulers Intercepted . | . . . . . . . . . Recyclers Shooed . | . . . . . . . . . Parts Field Recycled . | . . . . . . . . . Retrieved Matter . | . . . . . . . . . Parts Self-Destructed . | . . . . . . . . . Prevented . | . . . . . . . . . Kills | -11 -10 -10 -9 -9 -9 -9 -7 -7 ------- Run | Yrd Mat Min Mat Sto Gar Rec Fac DSF Combat Hostiles Destroyed 31 | . 2 4 . 6 14 . . 5 Melee 1 | . . . . . . . . 1 Guns 5 | . 2 2 . . . . . 1 Cannons 7 | . . . . 2 2 . . 3 AOE 18 | . . 2 . 4 12 . . . Classes Destroyed 11 | 2 2 . . 2 2 . . 3 Worker 1 | . . . . 1 . . . . Tunneler 2 | 2 . . . . . . . . Recycler 2 | 1 1 . . . . . . . Watcher 1 | . 1 . . . . . . . Swarmer 3 | . . . . . 3 . . . Grunt 18 | . 2 4 . 3 9 . . . Sentry 4 | . . . . 3 1 . . . Specialist 3 | . . . . . . . . 3 Hunter 1 | . . . . . . . . 1 Programmer 1 | . . . . . 1 . . . Heavy 1 | . . . . . . . . 1 Thug 1 | . . 1 . . . . . . Best Kill Streak 7 | 3 4 2 . 7 4 . . 3 Combat Bots Only 6 | . 2 2 . 6 4 . . 3 Max Kills in Single Turn 3 | 1 1 2 . 3 3 . . 1 Gunslinging . | . . . . . . . . . Exploded 3 | . . 1 . 2 3 . . . Melee 1 | . . . . . . . . 1 Uniques/NPCs Destroyed . | . . . . . . . . . Combat | -11 -10 -10 -9 -9 -9 -9 -7 -7 -------- Run | Yrd Mat Min Mat Sto Gar Rec Fac DSF Hostile Shots Fired 264 | . 13 19 . 23 25 13 . 171 Missed 96 | . 8 3 . 10 8 7 . 60 Damage Taken 3142 | . 91 291 . 404 222 86 . 2048 Core 938 | . 12 94 . 68 58 . . 706 Absorbed by Shields . | . . . . . . . . . Core Remaining (%) 75 | 100 . 57 . . . 68 . . Volleys Fired 77 | 4 13 12 2 13 15 . . 18 Largest 2 | 2 2 2 2 2 2 . . 2 Hottest 130 | 40 40 68 55 68 65 . . 130 Shots Fired 134 | 8 26 21 4 23 31 . . 21 Gun 64 | 8 26 17 2 2 . . . 9 Cannon 43 | . . 2 2 13 15 . . 11 Launcher 27 | . . 2 . 8 16 . . 1 Special . | . . . . . . . . . Kinetic 102 | 8 26 19 4 15 15 . . 15 Thermal 5 | . . . . . . . . 5 Explosive 27 | . . 2 . 8 16 . . 1 Electromagnetic . | . . . . . . . . . Robot Hit Streak 13 | 4 4 8 1 4 6 . . 13 Robot Miss Streak 3 | 1 3 1 3 3 2 . . 2 Penetration Max . | . . . . . . . . . Secondary Targets 1 | . . 1 . . . . . . Max Gunslinging Chain 1 | . . 1 . . . . . . Shots Hit Robots 79 | 5 14 17 1 7 18 . . 17 Core Hits 78 | 4 7 8 . 13 21 . . 25 Critical Kills . | . . . . . . . . . Critical Parts Destroyed . | . . . . . . . . . Critical Strikes 2 | . . . 1 1 . . . . Blast 2 | . . . 1 1 . . . . Melee Attacks . | . . . . . . . . . Impact . | . . . . . . . . . Slashing . | . . . . . . . . . Piercing . | . . . . . . . . . Sneak Attacks . | . . . . . . . . . Combat Hostiles . | . . . . . . . . . Follow-up Attacks . | . . . . . . . . . Damage Inflicted 2923 | 61 181 529 20 504 909 . . 719 Guns 528 | 61 170 170 . . . . . 127 Cannons 697 | . . 20 20 148 176 . . 333 Explosions 1626 | . . 330 . 356 731 . . 209 Melee . | . . . . . . . . . Ramming 72 | . 11 9 . . 2 . . 50 Kinetic 1149 | 61 170 190 20 148 176 . . 384 Thermal 235 | . . 159 . . . . . 76 Explosive 1467 | . . 171 . 356 731 . . 209 Electromagnetic . | . . . . . . . . . Impact . | . . . . . . . . . Slashing . | . . . . . . . . . Piercing . | . . . . . . . . . Highest Corruption 7 | . . . . 6 7 7 . . Average Corruption 6 | . . . . 6 6 7 . . Corruption Purged . | . . . . . . . . . Corruption Blocked . | . . . . . . . . . Effects 18 | . . . . 2 10 6 . . Message Errors 4 | . . . . 1 2 1 . . Matter Fused 3 | . . . . . 2 1 . . Heat Flow Errors 3 | . . . . 1 . 2 . . Energy Discharges 5 | . . . . . 4 1 . . Parts Fused 1 | . . . . . 1 . . . Data Loss (minor) 1 | . . . . . . 1 . . Misfires 1 | . . . . . 1 . . . Overload Shots . | . . . . . . . . . Overflow Damage 40 | . . 17 . 5 18 . . . Projectiles . | . . . . . . . . . Explosions 40 | . . 17 . 5 18 . . . Melee . | . . . . . . . . . Knockbacks 7 | . . . 1 . 3 . . 3 Impact . | . . . . . . . . . Kinetic 6 | . . . 1 . 2 . . 3 Secondary 1 | . . . . . 1 . . . Self-Inflicted Damage 100 | . 5 61 . . 28 . . 6 Shots 5 | . . 1 . . 4 . . . Rammed 11 | . 1 1 . . . . . 9 Targets Rammed 36 | . 1 1 . . 1 . . 33 Kicked 25 | . . . . . 1 . . 24 Crushed . | . . . . . . . . . Highest Temperature 213 | . 6 48 . 108 14 213 . . Average Temperature 35 | . 6 18 . 22 6 101 . . Received Heat Transfer 324 | . 24 168 . 60 45 27 . . Siege Activations . | . . . . . . . . . Robots Corrupted . | . . . . . . . . . Combat Hostiles . | . . . . . . . . . Parts Fried . | . . . . . . . . . Impact Corruptions . | . . . . . . . . . Robots Melted . | . . . . . . . . . Combat Hostiles . | . . . . . . . . . Parts Melted 1 | . . 1 . . . . . . Heat Transferred 435 | . . 250 . . . . . 185 Parts Sabotaged . | . . . . . . . . . Parts Stolen . | . . . . . . . . . Parts Stripped . | . . . . . . . . . Power Chain Reactions . | . . . . . . . . . Alert | -11 -10 -10 -9 -9 -9 -9 -7 -7 ------- Run | Yrd Mat Min Mat Sto Gar Rec Fac DSF Peak Influence 648 | 15 61 202 108 306 648 295 169 133 Initial 291 | . 9 23 78 45 198 291 169 121 Average 187 | 4 29 61 95 237 384 293 169 85 Maximum Alert Level 2 | . . 1 . 1 2 1 . . Low Security (%) 55 | 100 100 93 100 27 8 . 100 100 Level 1 38 | . . 6 . 72 59 100 . . Level 2 6 | . . . . . 32 . . . Level 3 . | . . . . . . . . . Level 4 . | . . . . . . . . . Level 5 . | . . . . . . . . . High Security . | . . . . . . . . . Max Security . | . . . . . . . . . Squads Dispatched 4 | . . . . 1 . . 1 2 Investigation 2 | . . . . 1 . . 1 . Extermination . | . . . . . . . . . Reinforcement 2 | . . . . . . . . 2 Assault . | . . . . . . . . . Garrison . | . . . . . . . . . Intercept . | . . . . . . . . . Searches Triggered . | . . . . . . . . . Construction Impeded . | . . . . . . . . . Haulers Reinforced . | . . . . . . . . . Active Scanning Responses . | . . . . . . . . . Cargo Convoy Interrupts . | . . . . . . . . . Stealth | -11 -10 -10 -9 -9 -9 -9 -7 -7 --------- Run | Yrd Mat Min Mat Sto Gar Rec Fac DSF Distress Signals 1 | . 1 . . . . . . . Communications Jammed . | . . . . . . . . . Distress Signals . | . . . . . . . . . Times Spotted 40 | . 6 4 1 6 14 1 . 8 Peak Tracking Total 5 | . 3 2 1 3 5 1 . 4 Tactical Retreats 3 | . . . . . . . . 3 Traps | -11 -10 -10 -9 -9 -9 -9 -7 -7 ------- Run | Yrd Mat Min Mat Sto Gar Rec Fac DSF Traps Triggered 2 | . 1 . . . . . . 1 Indirectly . | . . . . . . . . . Trap Hack Attempts . | . . . . . . . . . Triggered . | . . . . . . . . . Disarmed . | . . . . . . . . . Reprogrammed . | . . . . . . . . . Reused . | . . . . . . . . . Traps Extracted . | . . . . . . . . . Installed . | . . . . . . . . . Triggered . | . . . . . . . . . Machines | -11 -10 -10 -9 -9 -9 -9 -7 -7 ---------- Run | Yrd Mat Min Mat Sto Gar Rec Fac DSF Machines Disabled 10 | . . 5 1 3 1 . . . Max in Single Turn 5 | . . 5 1 1 1 . . . Garrison Relay 1 | . . . . . 1 . . . Machines Repaired . | . . . . . . . . . Machines Dismantled . | . . . . . . . . . Machines Sabotaged . | . . . . . . . . . Overloaded Fab Kills . | . . . . . . . . . Hacking | -11 -10 -10 -9 -9 -9 -9 -7 -7 --------- Run | Yrd Mat Min Mat Sto Gar Rec Fac DSF Machines Accessed 8 | . 1 . . 2 1 2 2 . Terminals 5 | . . . . 1 1 2 1 . Fabricators 1 | . . . . . . . 1 . Repair Stations . | . . . . . . . . . Recycling Units 1 | . 1 . . . . . . . Scanalyzers . | . . . . . . . . . Garrison Access 1 | . . . . 1 . . . . Total Hacks 22 | . 2 . . 7 2 5 6 . Successful 8 | . 2 . . 2 . 2 2 . Failed 14 | . . . . 5 2 3 4 . Catastrophic 2 | . . . . 1 1 . . . Database Lockouts . | . . . . . . . . . Manual . | . . . . . . . . . Terminals 12 | . . . . 4 2 5 1 . Fabricators 5 | . . . . . . . 5 . Repair Stations . | . . . . . . . . . Recycling Units 2 | . 2 . . . . . . . Scanalyzers . | . . . . . . . . . Garrison Access 3 | . . . . 3 . . . . Terminal Hacks 4 | . . . . 1 . 2 1 . Record 1 | . . . . 1 . . . . Robot Schematic 1 | . . . . . . 1 . . Open DSF 1 | . . . . . . . 1 . Emergency Access Points 1 | . . . . . . 1 . . Fabricator Hacks 1 | . . . . . . . 1 . Load Schematic 1 | . . . . . . . 1 . Repair Station Hacks . | . . . . . . . . . Recycling Unit Hacks 2 | . 2 . . . . . . . Recycle Component 1 | . 1 . . . . . . . Report Inventory 1 | . 1 . . . . . . . Scanalyzer . | . . . . . . . . . Garrison Access Hacks 1 | . . . . 1 . . . . Unlock Access 1 | . . . . 1 . . . . Unauthorized Hacks . | . . . . . . . . . Terminals . | . . . . . . . . . Fabricators . | . . . . . . . . . Repair Stations . | . . . . . . . . . Recycling Units . | . . . . . . . . . Scanalyzers . | . . . . . . . . . Garrison Access . | . . . . . . . . . Data Cores Recovered . | . . . . . . . . . Used . | . . . . . . . . . Hacking Detections 4 | . . . . 1 1 1 1 . Full Trace Events 4 | . . . . 1 1 1 1 . Feedback Events . | . . . . . . . . . Feedback Blocked . | . . . . . . . . . Robot Schematics Acquired 1 | . . . . . . 1 . . Robots Built . | . . . . . . . . . Authchips . | . . . . . . . . . Time . | . . . . . . . . . Total Robot Build Rating . | . . . . . . . . . Part Schematics Acquired . | . . . . . . . . . Parts Built . | . . . . . . . . . Authchips . | . . . . . . . . . Time . | . . . . . . . . . Total Part Build Rating . | . . . . . . . . . Parts Repaired . | . . . . . . . . . Time . | . . . . . . . . . Parts Recycled 1 | . 1 . . . . . . . Recycled Matter . | . . . . . . . . . Retrieved Matter . | . . . . . . . . . Retrieved Components . | . . . . . . . . . Parts Scanalyzed . | . . . . . . . . . Part Schematics Acquired . | . . . . . . . . . Parts Damaged . | . . . . . . . . . Bothacking | -11 -10 -10 -9 -9 -9 -9 -7 -7 ------------ Run | Yrd Mat Min Mat Sto Gar Rec Fac DSF Used RIF Installer 1 | . . . . . 1 . . . Robots Hacked . | . . . . . . . . . Non-combat . | . . . . . . . . . Combat . | . . . . . . . . . Robot Hacks Applied . | . . . . . . . . . Relay Couplers Released 9 | . . . . . 9 . . . Machine Destruction 5 | . . . . . 5 . . . Programmers 4 | . . . . . 4 . . . Fabnet Peak Effective % . | . . . . . . . . . Robots Rewired . | . . . . . . . . . Allies Hacked . | . . . . . . . . . Hacks Repelled . | . . . . . . . . . Allies | -11 -10 -10 -9 -9 -9 -9 -7 -7 -------- Run | Yrd Mat Min Mat Sto Gar Rec Fac DSF Total Allies . | . . . . . . . . . Largest Group . | . . . . . . . . . Highest-Rated Group . | . . . . . . . . . Highest-Rated Ally . | . . . . . . . . . Total Orders . | . . . . . . . . . Ally Attacks . | . . . . . . . . . Total Damage . | . . . . . . . . . Kills . | . . . . . . . . . Allies Corrupted . | . . . . . . . . . Allies Melted . | . . . . . . . . . Intel | -11 -10 -10 -9 -9 -9 -9 -7 -7 ------- Run | Yrd Mat Min Mat Sto Gar Rec Fac DSF Robot Analysis Total . | . . . . . . . . . Derelict Logs Recovered 1 | . . 1 . . . . . . Drone Launches . | . . . . . . . . . Drone Recoveries . | . . . . . . . . . Exploration | -11 -10 -10 -9 -9 -9 -9 -7 -7 ------------- Run | Yrd Mat Min Mat Sto Gar Rec Fac DSF Turns Passed 1633 | 87 172 225 104 119 310 339 71 206 Spaces Moved 1211 | 55 139 216 91 66 213 283 60 88 Core 14 | 3 . . . . . . . 11 Treads 3 | . . . . . . . . 3 Legs 599 | . . . 1 39 213 283 60 3 Wheels 554 | 52 139 216 90 27 . . . 30 Hover 41 | . . . . . . . . 41 Flight . | . . . . . . . . . Fastest Speed 50 | 50 90 80 100 100 120 120 120 50 Average Speed 105 | 87 91 80 100 111 120 120 120 104 Slowest Speed 250 | 90 100 100 190 120 120 120 120 250 Overloaded Moves . | . . . . . . . . . Propulsion Burnouts . | . . . . . . . . . Robots Hopped . | . . . . . . . . . Cave-ins Triggered 1 | . . . . 1 . . . . Exploration Rate (%) 32 | 3 28 67 18 14 33 52 1 75 Regions Visited 8 Branch Regions 3 Pre-discovered Areas 1 | . . 1 . . . . . . Known Exits Taken 3 | . . . . 1 . 1 1 . Unknown Exits Taken 4 | 1 1 1 1 . . . . . Scrap Searched 1 | . . 1 . . . . . . Spaces Dug 7 | . . . . . 7 . . . Terrain Destroyed 190 | . . 34 . 60 78 . . 18 Melee . | . . . . . . . . . Projectile 6 | . . . . . . . . 6 AOE 184 | . . 34 . 60 78 . . 12 Terrain Rammed . | . . . . . . . . . Walls Destroyed . | . . . . . . . . . Machines Disabled . | . . . . . . . . . Actions | -11 -10 -10 -9 -9 -9 -9 -7 -7 --------- Run | Yrd Mat Min Mat Sto Gar Rec Fac DSF Total 1417 | 85 157 245 97 87 237 282 59 168 Wait 18 | 9 . 6 . . . . . 3 Move 1204 | 54 138 215 90 66 212 282 59 88 Hop . | . . . . . . . . . Pick Up 34 | 11 4 3 2 3 2 . . 9 Fast Attach 5 | . . . . . . . . 5 Attach 21 | 7 . 2 . 4 1 . . 7 Detach . | . . . . . . . . . Swap 14 | . 1 4 3 1 4 . . 1 Drop 5 | . . 2 . . 2 . . 1 Fire 77 | 4 13 12 2 13 15 . . 18 Melee . | . . . . . . . . . Ram 11 | . 1 1 . . . . . 9 Kick 25 | . . . . . 1 . . 24 Crush . | . . . . . . . . . Escape Stasis . | . . . . . . . . . Rewire 3 | . . . . . . . . 3 Trap . | . . . . . . . . . Miscellaneous . | . . . . . . . . . Route ------- -11/Scrapyard -10/Materials -10/Mines -9/Materials -9/Storage -9/Garrison -9/Recycling -7/Factory -7/DSF History --------- Turn | Location | Event 18 | -11/Scrapyard | Discovered new exit (range 16) 88 | -11/Scrapyard | Entered Materials 225 | -10/Materials | Discovered new exit (range 9) 260 | -10/Materials | Entered Mines 315 | -10/Mines | Build established: Mutant 390 | -10/Mines | Received a Rocket Launcher from a helpful Derelict 407 | -10/Mines | Met a Derelict bent on vengeance 439 | -10/Mines | Learned location of Mines (-9) 467 | -10/Mines | Discovered new exit (range 10) 485 | -10/Mines | Entered Materials 485 | -9/Materials | Evolved 2 slots: Propulsion x2 585 | -9/Materials | Discovered new exit (range 5) 589 | -9/Materials | Entered Storage 642 | -9/Storage | Crushed by falling debris 673 | -9/Storage | Lost 3 parts (1p1u1w) 708 | -9/Storage | Identified exit to Garrison 708 | -9/Storage | Entered Garrison 770 | -9/Garrison | Triggered checkpoint 854 | -9/Garrison | Installed Relay Interface Framework 914 | -9/Garrison | Triggered checkpoint 918 | -9/Garrison | Triggered checkpoint 942 | -9/Garrison | Triggered checkpoint 1005 | -9/Garrison | Discovered new exit (range 9) 1008 | -9/Garrison | Build established: Scavenger-Mutant 1017 | -9/Garrison | Identified exit to Recycling 1018 | -9/Garrison | Entered Recycling 1339 | -9/Recycling | Discovered new exit (range 15) 1356 | -9/Recycling | Identified exit to Factory 1357 | -9/Recycling | Entered Factory 1357 | -7/Factory | Evolved 4 slots: Power x1, Utility x1, Weapon x2 1428 | -7/Factory | Identified exit to DSF 1428 | -7/Factory | Entered DSF 1495 | -7/DSF | Lost 5 parts (3n2w) 1502 | -7/DSF | Additional patrols routed to DSF 1580 | -7/DSF | Core integrity fell below 50% 1599 | -7/DSF | Core integrity fell below 20% 1634 | -7/DSF | Destroyed by H-55 Commando with Gauss Rifle Last Messages --------------- X-67 Chaingunner knocked back. Slug penetrates Wall. X-67 Chaingunner destroyed. Critical hit (Destroy). Arm. Treads destroyed. Slug penetrates Wall. Slug penetrates X-67 Chaingunner. X-67 Chaingunner knocked back. Slug penetrates Wall. Wall collapses. C-30 ARC bursts open, deploying its payload. H-55 Commando unfolds itself. H-55 Commando destroyed. Slug penetrates Wall. X-67 Chaingunner destroyed. Penetrated by Slug. H-55 Commando knocked back. Penetrated by Slug. Hvy. Assault Cannon destroyed. [Achievement: 5k Club] Map ----- +----------------------------------------------------+ | | | | | ????????????????????????????????????????????????? | | ????????????????????????????????????????????????? | | ????????????????????????????????????????????????? | | ????????????????????????????????????????????????? | | ?????????""#??????????????????????????""????????? | | ?????????#"#?????????##??????????????#"#????????? | | ??????####"##???????##"######???????##"####?????? | | ??????#"""""#########!!!!!!!#########"""""#?????? | | ??????#"""""##!!#!!!#! !!!!# # ##"""""#?????? | | ???#"##"" ""##"???? | | ???#""""" ^ """""???? | | ????###"" ##!!#!!!### ;"# #==## ""##????? | | ??????### ###!!#!!!##; ;## #==### ###?????? | | ???????## ##########[[ ########## ##??????? | | ???????#! #??????#[[ #??????#== #??????? | | ???????#! #??????#[[ #??????#== #??????? | | ???????## ###??????### ###??????### ##??????? | | ???????#! !!#??????#!! !!???????# =#??????? | | ???????#! !#??????#!! !!?##????# =#??????? | | ???????#! !!#??????#!! !!?? ##??# =#??????? | | ???????## ###??#???### #####;###;## ###?????? | | ??????? ##???#!!?## !!!;%% ;; #?????? | | ??????# ##!!!#!!!# !% ! ! ;; #?????? | | ??????#!! !% @ ![[%! % #?????? | | ??????#!! = %%!%*% #?????? | | ??????#!! = [=% #?????? | | ??????# ##!!!#===# % % #!!!;]] ;# #?????? | | ??????# ##???#==?# ! ! #!!!#]]]## #?????? | | ??????### #????#???#;%[= ################?????? | | ???????? ]????????#!!%% !!????????????????????? | | ???????? ]????????/h!* !!#???????????????????? | | ???????? ]???????##!! !!#???????????????????? | | ????????# #????????###% ###???????????????????? | | ????????? ??????????? ?????????????????????? | | ????????? ?????????? ?????????????????????? | | ????????????????????# ?????????????????????? | | ?????????????????????## ##????????????????????? | | ??????????????????????# #?????????????????????? | | ?????????????????????? ?????????????????????? | | ??????????????????????? ??????????????????????? | | ??????????????????????? ??????????????????????? | | ????????????????????????????????????????????????? | | ????????????????????????????????????????????????? | | ????????????????????????????????????????????????? | | ????????????????????????????????????????????????? | | ????????????????????????????????????????????????? | | ????????????????????????????????????????????????? | | ????????????????????????????????????????????????? | +----------------------------------------------------+ Best States ------------- Heat Dissipation 44 Energy Generation 16 Energy Capacity 290 Matter Stores 300 Matter Capacity 300 Sight Range 16 Terrain Scan Density 10 Evasion (%) 55 Recoil Reduction 1 Item Schematics ----------------- None Robot Schematics ------------------ A-02 Transporter | -9/Recycling | Hacked Fabricated ------------ Nothing Alien Tech Used ----------------- None Achievements -------------- 5k Club Backstab Fist Fight Made in Tau Ceti IV Maybe Next Time I'll Detach My Launcher Oops Challenges ------------ None Game ------ Seed IntegratedWarpAxe Manual? 0 Play Time 00:36:54 Cumulative 5.4 hours Start 2024.05.03 @ 03:18:48 End 2024.05.03 @ 10:31:08 Sessions 3 Manual Loads 0 Difficulty Rogue Special Mode None Game No. 10 Rogue 10 Adventurer 0 Explorer 0 Win Type - Total 0 Types 0/0/0/0/0/0/0/0/0 Lore% 13 Gallery% 8 Achievement% 8 Wizard Run 0 Options --------- Layout 1 ASCII 0 Keyboard 0 Movement Mouse Keybinds 0 Fullscreen 2 Font 24/Crisp Map View 25x17 Zoom Use 86% Tactical HUD 0 Map Filters NONE Filters NONE Steam 1 RUN: 615acb3a-ccc4-475f-8f6c-c6d8b1c70673